bitfinex-derivatives/quotes_BNBF0:USTF0_20260221
["timestamp","ask_amount","ask_price","bid_price","bid_amount"]
[1771654620085,1.19140546,627.52,627.04,69.8725124]
[1771654627186,1.19140546,627.51,627.04,69.8725124]
[1771654628186,1.19140546,627.52,627.04,69.8725124]
[1771654629091,1.19140546,627.51,627.04,69.8725124]
[1771654629290,1.19140546,627.52,627.04,69.8725124]
[1771654630189,1.19140546,627.51,627.04,69.8725124]
[1771654630392,1.19140546,627.52,627.04,69.8725124]
[1771654631189,1.19140546,627.51,627.04,69.8725124]
[1771654633291,1.19140546,627.51,626.83,1.19318502]
[1771654634291,1.19140546,627.5,626.83,1.19318502]
[1771654635195,1.19140546,627.5,626.84,1.19318502]
[1771654636195,1.19140546,627.49,626.85,1.19318502]
[1771654640099,1.19140546,627.48,626.85,1.19318502]
[1771654641201,1.19140546,627.48,626.86,1.19318502]
[1771654641602,1.19140546,627.46,626.84,1.19318502]
[1771654642202,1.19140546,627.44,626.81,1.47064056]
[1771654648302,1.19140546,627.45,626.81,1.47064056]
[1771654649404,1.19140546,627.45,626.81,1.19318502]
[1771654654211,1.19140546,627.44,626.81,1.19318502]
[1771654656109,1.19140546,627.43,626.8,1.19318502]
[1771654656812,1.19140546,627.4,626.77,1.19318502]
[1771654657207,1.19140546,627.39,626.77,1.19318502]
[1771654657411,1.19140546,627.4,626.77,1.19318502]
[1771654660110,1.58854061,627.51,626.77,1.19318502]
[1771654660111,1.19140546,627.39,626.77,1.19318502]
[1771654664214,1.19140546,627.39,626.78,1.19318502]
[1771654664715,1.58854061,627.5,626.73,0.27748209]
[1771654664914,1.19176139,627.39,626.78,1.1946769]
[1771654667219,1.19176139,627.39,626.77,1.1946769]
[1771654672426,1.19176139,627.38,626.76,1.1946769]
[1771654673321,1.19176139,627.38,626.73,0.27748209]
[1771654673322,1.19176139,627.37,626.75,1.1946769]
[1771654677325,1.19176139,627.34,626.73,0.27748209]
[1771654681436,1.19176139,627.34,626.72,1.1946769]
[1771654685233,1.19176139,627.33,626.72,1.1946769]
[1771654686235,1.19176139,627.33,626.73,1.1946769]
[1771654687338,1.19176139,627.33,626.72,1.1946769]
[1771654691241,1.19176139,627.33,626.73,1.1946769]
[1771654693339,1.19176139,627.37,626.77,1.1946769]
[1771654695144,1.19176139,627.4,626.8,1.1946769]
[1771654699246,1.19176139,627.4,626.81,1.1946769]
[1771654700147,1.19176139,627.39,626.81,1.1946769]
[1771654704151,1.19176139,627.4,626.81,1.1946769]
[1771654708854,1.19176139,627.4,626.82,3.113]
[1771654709357,0.27734719,627.87,626.83,1.1946769]
[1771654709358,1.19176139,627.43,626.83,1.1946769]
[1771654714360,1.19176139,627.52,626.92,1.1946769]
[1771654714561,1.19176139,627.53,626.93,1.1946769]
[1771654715361,1.19176139,627.54,626.92,1.1946769]
[1771654716359,1.19176139,627.55,626.91,1.1946769]
[1771654717460,1.19176139,627.56,626.9,1.1946769]
[1771654719466,1.19176139,627.57,626.89,1.1946769]
[1771654721365,1.58854061,627.69,626.89,1.1946769]
[1771654721366,1.19176139,627.58,626.89,1.1946769]
[1771654722364,1.19176139,627.58,626.88,1.1946769]
[1771654728370,1.19176139,627.59,626.88,1.1946769]
[1771654729271,1.19176139,627.58,626.88,1.1946769]
[1771654729870,1.19176139,627.62,626.92,1.1946769]
[1771654730470,1.19176139,627.63,626.92,1.1946769]
[1771654731373,1.19176139,627.63,626.91,1.1946769]
[1771654731571,0.27734719,627.87,626.92,1.1946769]
[1771654731572,1.19176139,627.64,626.92,1.1946769]
[1771654734979,1.19176139,627.63,626.92,1.1946769]
[1771654735579,1.19176139,627.64,626.93,1.1946769]
[1771654736281,1.19176139,627.63,626.93,1.1946769]
[1771654736581,1.19176139,627.64,626.93,1.1946769]
[1771654737282,1.19176139,627.63,626.93,1.1946769]
[1771654744488,1.19176139,627.63,626.94,1.1946769]
[1771654745290,1.19176139,627.61,626.92,1.1946769]
[1771654745487,1.19176139,627.59,626.9,1.1946769]
[1771654747293,1.19176139,627.58,626.9,1.1946769]
[1771654747494,0.27734719,627.87,626.89,1.1946769]
[1771654747495,1.19176139,627.57,626.89,1.1946769]
[1771654748393,1.19176139,627.57,626.9,1.1946769]
[1771654750397,1.19176139,627.56,626.9,1.1946769]
[1771654751294,1.19176139,627.56,626.91,1.1946769]
[1771654752498,1.19176139,627.56,626.92,3.902]
[1771654753497,1.19176139,627.55,626.92,3.902]
[1771654754297,1.19176139,627.55,626.92,5.0966769]
[1771654755398,1.19176139,627.54,626.92,5.0966769]
[1771654756396,1.19176139,627.54,626.93,1.1946769]
[1771654756697,1.19176139,627.41,626.92,3.902]
[1771654757200,1.19176139,627.42,626.92,3.902]
[1771654757500,1.19176139,627.41,626.92,3.902]
[1771654758200,1.19176139,627.42,626.92,3.902]
[1771654761196,1.19176139,627.43,626.92,3.902]
[1771654762300,1.19176139,627.41,626.92,3.902]
[1771654762501,1.19176139,627.4,626.92,3.902]
[1771654763301,1.19176139,627.41,626.92,3.902]
[1771654765202,1.19176139,627.42,626.92,3.902]
[1771654767301,1.19176139,627.43,626.92,3.902]
[1771654768205,1.19176139,627.31,626.92,3.902]
[1771654768507,1.19176139,627.32,626.92,3.902]
[1771654769205,1.19176139,627.33,626.92,3.902]
[1771654770205,1.19176139,627.34,626.92,3.902]
[1771654771204,1.19176139,627.35,626.92,3.902]
[1771654772406,1.19176139,627.36,626.92,3.902]
[1771654774207,1.19176139,627.37,626.92,3.902]
[1771654777208,1.19176139,627.38,626.92,3.902]
[1771654777807,1.19176139,627.41,626.92,3.902]
[1771654782510,1.19176139,627.41,626.65,0.27752081]
[1771654786117,1.19176139,627.4,626.66,3.284]
[1771654787016,1.19176139,627.38,626.66,3.284]
[1771654788217,1.19176139,627.37,626.66,3.284]
[1771654791317,1.19176139,627.36,626.66,3.284]
[1771654791519,1.19176139,627.35,626.66,3.284]
[1771654793416,1.19176139,627.34,626.66,3.284]
[1771654795219,1.19176139,627.33,626.66,3.284]
[1771654797221,1.19176139,627.32,626.66,3.284]
[1771654798221,1.19176139,627.31,626.66,3.284]
[1771654800224,1.19176139,627.3,626.66,3.284]
[1771654800920,1.58854061,627.41,626.66,3.284]
[1771654800921,1.19176139,627.29,626.66,3.284]
[1771654801224,1.19176139,627.28,626.66,3.284]
[1771654802421,1.19176139,627.2,626.66,3.284]
[1771654805022,1.19176139,627.18,626.66,3.284]
[1771654806327,1.19176139,627.17,626.66,3.284]
[1771654807128,1.19176139,627.18,626.66,3.284]
[1771654807329,1.19176139,627.17,626.66,3.284]
[1771654808127,1.19176139,627.18,626.66,3.284]
[1771654808330,1.19176139,627.17,626.66,3.284]
[1771654809129,1.19176139,627.18,626.66,3.284]
[1771654809334,1.19176139,627.17,626.66,3.284]
[1771654813636,1.19176139,627.18,626.66,3.284]
[1771654814837,1.19176139,627.18,626.57,73.46625856]
[1771654815337,1.19176139,627.2,626.57,73.46625856]
[1771654817535,1.19176139,627.2,626.58,3.009]
[1771654818240,1.19176139,627.21,626.58,3.009]
[1771654819141,1.19176139,627.2,626.58,3.009]
[1771654819338,1.19176139,627.21,626.58,3.009]
[1771654823245,1.19176139,627.2,626.58,3.009]
[1771654825748,1.19176139,627.18,626.58,3.009]
[1771654830251,1.19176139,627.17,626.58,3.009]
[1771654835653,1.19176139,627.16,626.58,3.009]
[1771654841258,1.19176139,627.15,626.58,3.009]
[1771654844262,1.19176139,627.16,626.61,0.27755623]
[1771654844462,1.19176139,627.19,626.62,1.1946769]
[1771654848462,1.19176139,627.2,626.63,1.1946769]
[1771654849067,1.19176139,627.2,626.62,1.1946769]
[1771654851168,1.19176139,627.21,626.62,1.1946769]
[1771654851369,1.19176139,627.22,626.64,1.1946769]
[1771654852369,1.19176139,627.28,626.69,1.1946769]
[1771654853068,1.19176139,627.28,626.61,0.27755623]
[1771654853069,1.19176139,627.28,626.68,1.1946769]
[1771654853971,1.19176139,627.36,626.76,1.1946769]
[1771654854170,1.19176139,627.37,626.74,1.1946769]
[1771654855067,1.19176139,627.38,626.73,1.1946769]
[1771654856271,1.19176139,627.39,626.73,1.1946769]
[1771654857074,1.19176139,627.4,626.74,1.1946769]
[1771654857274,1.19176139,627.41,626.73,1.1946769]
[1771654857474,1.19176139,627.45,626.77,1.1946769]
[1771654858074,1.19176139,627.46,626.76,1.1946769]
[1771654859074,1.19176139,627.47,626.76,1.1946769]
[1771654861276,1.19176139,627.48,626.75,1.1946769]
[1771654862379,1.19176139,627.48,626.74,1.1946769]
[1771654863278,1.19176139,627.49,626.74,1.1946769]
[1771654864275,1.19176139,627.49,626.73,1.1946769]
[1771654865380,1.19176139,627.5,626.73,1.1946769]
[1771654866380,1.19176139,627.5,626.72,1.1946769]
[1771654868381,1.19176139,627.51,626.72,1.1946769]
[1771654869283,1.19176139,627.51,626.71,1.1946769]
[1771654879594,1.19176139,627.51,626.72,4.103]
[1771654879794,1.19176139,627.53,626.73,1.1946769]
[1771654880689,1.19176139,627.54,626.74,1.1946769]
[1771654881792,1.19176139,627.54,626.75,1.1946769]
[1771654883093,1.19176139,627.54,626.76,1.1946769]
[1771654883396,1.19176139,627.54,626.75,1.1946769]
[1771654884097,1.19176139,627.54,626.76,1.1946769]
[1771654885197,1.19176139,627.53,626.76,1.1946769]
[1771654885892,1.19176139,627.54,626.76,1.1946769]
[1771654886097,1.19176139,627.53,626.77,1.1946769]
[1771654888099,1.19176139,627.52,626.78,1.1946769]
[1771654889197,1.19176139,627.51,626.79,1.1946769]
[1771654890297,1.19176139,627.52,626.8,1.1946769]
[1771654891100,1.19176139,627.51,626.8,1.1946769]
[1771654892101,1.19176139,627.51,626.81,1.1946769]
[1771654893098,1.19176139,627.5,626.82,1.1946769]
[1771654894198,1.19176139,627.49,626.82,1.1946769]
[1771654895199,1.19176139,627.48,626.83,1.1946769]
[1771654896202,1.19176139,627.47,626.84,1.1946769]
[1771654897299,1.19176139,627.46,626.86,1.1946769]
[1771654898199,1.19176139,627.45,626.86,1.1946769]
[1771654899002,0.27743785,627.74,626.86,1.1946769]
[1771654899003,1.19176139,627.44,626.86,1.1946769]
[1771654900401,1.19176139,627.41,626.84,1.1946769]
[1771654904510,1.19176139,627.4,626.83,1.1946769]
[1771654909213,1.19176139,627.39,626.82,1.1946769]
[1771654914023,1.19176139,627.38,626.81,1.1946769]
[1771654914219,1.19176139,627.35,626.78,1.1946769]
[1771654914419,1.19176139,627.33,626.75,1.1946769]
[1771654915824,1.19176139,627.33,626.74,1.1946769]
[1771654916424,1.58854061,627.44,626.72,4.103]
[1771654916425,1.19176139,627.32,626.72,5.2976769]
[1771654917321,1.19176139,627.33,626.72,5.2976769]
[1771654917524,1.19176139,627.31,626.72,4.103]
[1771654919322,1.19176139,627.32,626.72,4.103]
[1771654922225,1.19176139,627.33,626.72,4.103]
[1771654924630,1.19176139,627.33,626.68,1.1946769]
[1771654925227,1.19176139,627.34,626.68,1.1946769]
[1771654926731,1.19176139,627.35,626.69,1.1946769]
[1771654927231,1.19176139,627.35,626.68,1.1946769]
[1771654928836,1.19176139,627.4,626.73,1.1946769]
[1771654929035,1.19176139,627.4,626.62,1.59091336]
[1771654929036,1.19176139,627.41,626.74,1.1946769]
[1771654931131,1.19176139,627.4,626.74,1.1946769]
[1771654935134,1.19176139,627.4,626.75,1.1946769]
[1771654935639,1.19176139,627.4,626.61,0.27755623]
[1771654935640,1.19176139,627.42,626.76,1.1946769]
[1771654937137,1.19176139,627.41,626.76,1.1946769]
[1771654938240,1.19176139,627.41,626.77,1.1946769]
[1771654942342,1.19176139,627.4,626.77,1.1946769]
[1771654943248,1.19176139,627.4,626.78,1.1946769]
[1771654945846,1.19176139,627.41,626.79,1.1946769]
[1771654946046,1.19176139,627.47,626.85,1.1946769]
[1771654946242,1.19176139,627.51,626.88,1.1946769]
[1771654948145,1.19176139,627.52,626.88,1.1946769]
[1771654949247,1.19176139,627.52,626.87,1.1946769]
[1771654951149,1.19176139,627.53,626.87,1.1946769]
[1771654952146,1.19176139,627.53,626.86,1.1946769]
[1771654952650,1.19176139,627.47,626.81,1.1946769]
[1771654955347,1.19176139,627.47,626.8,1.1946769]
[1771654956147,1.19176139,627.47,626.81,1.1946769]
[1771654956350,1.19176139,627.47,626.8,1.1946769]
[1771654961753,1.19176139,627.46,626.8,1.1946769]
[1771654962049,1.19176139,627.43,626.76,1.1946769]
[1771654962553,1.19176139,627.43,626.69,3.79]
[1771654962554,1.19176139,627.42,626.75,1.1946769]
[1771654962753,1.19176139,627.41,626.75,1.1946769]
[1771654963156,1.19176139,627.37,626.71,1.1946769]
[1771654972155,1.19176139,627.36,626.71,1.1946769]
[1771654973258,1.19176139,627.36,626.72,1.1946769]
[1771654974159,1.19176139,627.36,626.71,1.1946769]
[1771654975164,1.19176139,627.37,626.71,1.1946769]
[1771654976863,1.19176139,627.33,626.69,3.79]
[1771654979164,1.19176139,627.34,626.69,3.79]
[1771654984369,1.19176139,627.35,626.69,3.79]
[1771654986277,1.19176139,627.35,626.66,1.1946769]
[1771654987172,1.19176139,627.35,626.65,1.1946769]
[1771654990078,1.19176139,627.35,626.66,4.163]
[1771654993179,1.19176139,627.35,626.66,5.3576769]
[1771654994179,1.19176139,627.34,626.66,5.3576769]
[1771654996177,1.19176139,627.33,626.67,1.1946769]
[1771654998183,1.19176139,627.33,626.68,1.1946769]
[1771654999180,1.19176139,627.32,626.68,1.1946769]
[1771655000785,1.58854061,627.43,626.66,4.163]
[1771655000982,1.19185955,627.32,626.68,1.19409809]
[1771655002185,1.19185955,627.31,626.69,1.19409809]
[1771655004387,1.19185955,627.3,626.7,1.19409809]
[1771655006186,1.19185955,627.3,626.66,4.163]
[1771655006187,1.19185955,627.29,626.71,1.19409809]
[1771655007486,1.19185955,627.28,626.72,1.19409809]
[1771655016191,1.19185955,627.27,626.73,1.19409809]
[1771655019295,1.19185955,627.27,626.66,4.163]
[1771655019296,1.19185955,627.25,626.71,1.19409809]
[1771655021195,1.19185955,627.24,626.72,1.19409809]
[1771655021497,1.19185955,627.24,626.71,1.19409809]
[1771655022296,1.19185955,627.25,626.71,1.19409809]
[1771655028699,1.19185955,627.24,626.7,1.19409809]
[1771655028902,1.19185955,627.24,626.66,4.163]
[1771655028903,1.19185955,627.1,626.66,4.163]
[1771655029302,1.19185955,627.12,626.66,4.163]
[1771655030304,1.19185955,627.14,626.66,4.163]
[1771655032306,1.19185955,627.15,626.66,4.163]
[1771655033302,1.19185955,627.16,626.66,4.163]
[1771655035103,1.19185955,627.16,626.61,0.27755623]
[1771655035405,1.19185955,627.17,626.61,0.27755623]
[1771655036105,1.19185955,627.13,626.61,0.27755623]
[1771655036508,1.19185955,627.14,626.61,0.27755623]
[1771655037808,1.19185955,627.14,626.62,1.625]
[1771655039307,1.19185955,627.15,626.62,1.625]
[1771655044309,1.19185955,627.16,626.62,1.625]
[1771655055324,1.19185955,627.15,626.62,1.625]
[1771655060328,1.19185955,627.14,626.62,1.625]
[1771655060729,1.58854061,627.26,626.62,1.625]
[1771655060929,1.19086679,627.14,626.62,1.625]
[1771655063330,1.19086679,627.13,626.62,1.625]
[1771655067330,1.19086679,627.12,626.62,1.625]
[1771655069232,1.19086679,627.11,626.62,1.625]
[1771655071334,1.19086679,627.1,626.62,1.625]
[1771655072338,1.19086679,627.09,626.62,1.625]
[1771655073339,1.19086679,627.06,626.62,1.625]
[1771655077142,1.58854061,627.17,626.62,1.625]
[1771655077339,1.19447338,627.06,626.62,1.625]
[1771655080144,1.19447338,627.07,626.62,1.625]
[1771655088047,1.19447338,627.07,626.61,0.27755623]
[1771655090549,1.19447338,627.07,626.62,1.576]
[1771655096054,1.19447338,627.08,626.62,1.576]
[1771655100659,1.1941623,627.08,626.62,1.576]
[1771655105663,1.1941623,627.08,626.55,1.19690874]
[1771655108164,1.1941623,627.08,626.56,1.439]
[1771655109266,1.1941623,627.16,626.63,1.19690874]
[1771655109670,1.1941623,627.21,626.68,1.19690874]
[1771655110466,1.1941623,627.22,626.66,1.19690874]
[1771655111268,1.1941623,627.23,626.65,1.19690874]
[1771655112469,1.1941623,627.24,626.64,1.19690874]
[1771655113374,1.1941623,627.25,626.64,1.19690874]
[1771655114374,1.1941623,627.25,626.63,1.19690874]
[1771655116271,1.1941623,627.26,626.62,1.19690874]
[1771655119177,1.1941623,627.27,626.62,1.19690874]
[1771655120278,1.1941623,627.27,626.61,1.19690874]
[1771655125984,1.1941623,627.29,626.62,1.19690874]
[1771655140295,1.1941623,627.28,626.62,1.19690874]
[1771655141394,1.1941623,627.28,626.63,1.19690874]
[1771655146208,1.1941623,627.27,626.64,1.19690874]
[1771655149212,1.1941623,627.26,626.65,1.19690874]
[1771655151318,1.1941623,627.25,626.66,1.19690874]
[1771655153221,1.1941623,627.25,626.56,1.439]
[1771655153222,1.1941623,627.24,626.67,1.19690874]
[1771655154419,1.1941623,627.21,626.7,1.19690874]
[1771655156021,1.1941623,627.22,626.71,1.19690874]
[1771655161628,1.1941623,627.22,626.56,1.439]
[1771655161629,1.1941623,627.24,626.72,1.19690874]
[1771655164432,1.1941623,627.25,626.72,1.19690874]
[1771655167036,1.1941623,627.25,626.73,1.258]
[1771655206381,1.1941623,627.24,626.73,1.258]
[1771655216093,1.1941623,627.25,626.73,2.45490874]
[1771655222197,1.1941623,627.25,626.73,1.19690874]
[1771655241517,1.58854061,627.36,626.61,1.59091336]
[1771655241819,1.19379695,627.25,626.73,1.19689628]
[1771655246119,1.19379695,627.22,626.7,1.19689628]
[1771655246621,1.1938264,627.22,626.7,1.19689412]
[1771655276149,1.1938264,627.23,626.71,1.19689412]
[1771655283858,0.27757062,627.48,626.7,1.19689412]
[1771655283859,1.1938264,627.22,626.7,1.19689412]
[1771655292271,1.1938264,627.23,626.7,1.19689412]
[1771655306176,1.1938264,627.25,626.72,1.19689412]
[1771655309282,1.1938264,627.25,626.73,1.423]
[1771655313485,1.58854061,627.36,626.73,1.423]
[1771655313690,1.19370264,627.25,626.73,1.423]
[1771655322396,1.19370264,627.24,626.73,1.423]
[1771655339900,1.19370264,627.2,626.73,1.423]
[1771655340302,1.19370264,627.13,626.73,1.423]
[1771655340503,1.19370264,627.12,626.73,1.423]
[1771655340704,1.19370264,627.11,626.73,1.423]
[1771655341106,1.19370264,627.14,626.73,1.423]
[1771655342105,1.19370264,627.15,626.73,1.423]
[1771655343806,1.19370264,627.13,626.73,1.423]
[1771655344003,1.19370264,627.11,626.73,1.423]
[1771655344207,1.19370264,627.12,626.73,1.423]
[1771655345104,1.58854061,627.23,626.73,1.423]
[1771655345105,1.19370264,627.13,626.73,1.423]
[1771655346206,1.19370264,627.14,626.73,1.423]
[1771655348110,1.19370264,627.15,626.73,1.423]
[1771655351107,1.58854061,627.27,626.73,1.423]
[1771655351108,1.19370264,627.16,626.73,1.423]
[1771655355215,1.19370264,627.15,626.73,1.423]
[1771655357122,1.19370264,627.16,626.73,1.423]
[1771655358319,1.58854061,627.27,626.73,1.423]
[1771655358618,1.18893274,627.16,626.73,1.423]
[1771655364330,1.18893274,627.16,626.43,44.81023266]
[1771655368432,1.18893274,627.16,626.44,1.209]
[1771655372237,1.18893274,627.15,626.44,2.40155831]
[1771655376238,1.18893274,627.14,626.45,1.19255831]
[1771655378238,1.18893274,627.13,626.46,1.19255831]
[1771655380140,1.18893274,627.07,626.44,1.209]
[1771655381243,1.18893274,627.06,626.44,1.209]
[1771655382443,1.18893274,627.05,626.44,1.209]
[1771655383347,1.18893274,627.04,626.44,1.209]
[1771655384147,1.18893274,627.05,626.44,1.209]
[1771655384445,1.18893274,627.03,626.45,1.19255831]
[1771655386948,1.18893274,627.02,626.44,2.40155831]
[1771655387647,1.18893274,626.99,626.44,1.209]
[1771655387846,1.18893274,626.98,626.44,1.209]
[1771655389049,1.18893274,626.99,626.44,1.209]
[1771655391162,1.18893274,627.0,626.44,1.209]
[1771655396260,1.18893274,627.01,626.44,1.209]
[1771655404869,1.18893274,627.0,626.44,1.209]
[1771655405772,1.18893274,626.93,626.44,1.209]
[1771655407174,1.18893274,626.94,626.44,1.209]
[1771655409872,1.18893274,626.93,626.44,1.209]
[1771655410472,1.18893274,626.85,626.44,1.209]
[1771655411173,1.18893274,626.86,626.44,1.209]
[1771655413172,1.18893274,626.87,626.44,1.209]
[1771655415176,1.18893274,626.88,626.44,1.209]
[1771655418273,1.18893274,626.89,626.44,1.209]
[1771655421477,1.18893274,626.89,626.13,0.27770463]
[1771655425486,1.18893274,626.89,626.14,1.198]
[1771655426387,1.18893274,626.88,626.14,1.198]
[1771655428788,1.58854061,626.99,626.14,1.198]
[1771655428986,1.18748984,626.88,626.14,1.198]
[1771655430192,1.18748984,626.87,626.14,1.198]
[1771655436296,1.18748984,626.86,626.14,1.198]
[1771655436995,1.58854061,626.98,626.14,1.198]
[1771655437196,1.18826131,626.86,626.14,1.198]
[1771655439092,1.18826131,626.86,626.14,2.39095507]
[1771655440198,1.18826131,626.85,626.14,1.198]
[1771655441196,1.18826131,626.84,626.14,1.198]
[1771655442195,1.18826131,626.84,626.14,2.39095507]
[1771655443799,1.18826131,626.83,626.14,2.39095507]
[1771655444303,1.18826131,626.83,626.15,1.19295507]
[1771655445998,1.18826131,626.82,626.15,1.19295507]
[1771655447103,1.18826131,626.82,626.16,1.19295507]
[1771655447602,1.18826131,626.81,626.15,1.19295507]
[1771655448199,1.18826131,626.8,626.15,1.19295507]
[1771655449205,1.18826131,626.79,626.16,1.19295507]
[1771655449701,1.18826131,626.74,626.14,1.198]
[1771655449901,1.18826131,626.68,626.14,1.198]
[1771655450099,1.18826131,626.67,626.14,1.198]
[1771655450804,1.18826131,626.66,626.14,1.198]
[1771655451201,1.18826131,626.67,626.14,1.198]
[1771655455102,1.18826131,626.68,626.14,1.198]
[1771655456405,1.18826131,626.67,626.14,1.198]
[1771655459104,1.18826131,626.68,626.14,1.198]
[1771655461707,1.18826131,626.66,626.14,1.198]
[1771655461905,1.18826131,626.61,626.14,1.198]
[1771655462308,1.18826131,626.62,626.14,1.198]
[1771655462804,3.97978922,627.29,626.14,1.198]
[1771655462805,1.18826131,626.6,626.14,1.198]
[1771655463204,1.18826131,626.61,626.14,1.198]
[1771655464112,1.18826131,626.51,626.14,1.198]
[1771655464406,1.18826131,626.53,626.14,1.198]
[1771655465108,1.18826131,626.51,626.14,1.198]
[1771655465812,1.18826131,626.5,626.14,1.198]
[1771655466011,1.18826131,626.49,626.14,1.198]
[1771655466607,1.18826131,626.5,626.14,1.198]
[1771655467309,1.18826131,626.51,626.14,1.198]
[1771655468113,1.18826131,626.5,626.14,1.198]
[1771655468316,1.18826131,626.52,626.14,1.198]
[1771655470313,1.18826131,626.53,626.14,1.198]
[1771655471416,1.18826131,626.54,626.14,1.198]
[1771655471620,1.18826131,626.53,626.14,1.198]
[1771655471815,1.18826131,626.52,626.14,1.198]
[1771655473317,1.18826131,626.53,626.14,1.198]
[1771655474222,1.58854061,626.64,626.14,1.198]
[1771655474420,1.18355456,626.53,626.14,1.198]
[1771655475322,1.18355456,626.54,626.14,1.198]
[1771655475523,3.97978922,627.21,626.14,1.198]
[1771655475524,1.18355456,626.59,626.14,1.198]
[1771655479129,1.18355456,626.58,626.14,1.198]
[1771655479329,1.18355456,626.57,626.14,1.198]
[1771655479825,1.18355456,626.53,626.14,1.198]
[1771655480226,1.18355456,626.51,626.14,1.198]
[1771655481832,5.84925117,627.41,626.14,1.198]
[1771655481833,1.18355456,626.5,626.14,1.198]
[1771655484437,1.58854061,626.61,626.14,1.198]
[1771655484438,1.18355456,626.46,626.14,1.198]
[1771655484738,1.18355456,626.39,625.57,0.277902]
[1771655486339,1.18355456,626.4,625.57,0.277902]
[1771655486540,1.18355456,626.42,625.46,1.18974475]
[1771655486740,1.18355456,626.42,625.58,0.27799302]
[1771655486938,1.18355456,626.43,625.58,0.27799302]
[1771655487336,1.18355456,626.45,625.59,1.601]
[1771655488741,1.18355456,626.49,625.59,1.601]
[1771655489037,1.18355456,626.51,625.59,1.601]
[1771655490138,1.18355456,626.5,625.59,1.601]
[1771655490342,1.18355456,626.52,625.59,2.79074475]
[1771655490543,1.18355456,626.53,625.6,1.18974475]
[1771655491244,0.27754627,627.41,625.68,1.18974475]
[1771655491245,1.18355456,626.6,625.68,1.18974475]
[1771655491447,1.18355456,626.59,625.68,1.18974475]
[1771655492250,1.18355456,626.59,625.69,1.18974475]
[1771655493250,1.18355456,626.58,625.7,1.18974475]
[1771655493951,1.18355456,626.59,625.72,1.18974475]
[1771655494247,1.18355456,626.58,625.73,1.18974475]
[1771655494948,1.18355456,626.58,625.62,1.59091336]
[1771655494949,1.18355456,626.65,625.8,1.18974475]
[1771655496159,1.18355456,626.65,625.81,1.18974475]
[1771655497148,1.18355456,626.64,625.81,1.18974475]
[1771655498348,1.18355456,626.64,625.82,1.18974475]
[1771655499152,1.18355456,626.63,625.82,1.18974475]
[1771655501257,1.18355456,626.63,625.83,1.18974475]
[1771655502055,1.18355456,626.62,625.83,1.18974475]
[1771655503159,1.18355456,626.62,625.84,1.18974475]
[1771655504157,1.18355456,626.61,625.84,1.18974475]
[1771655506259,1.18355456,626.61,625.85,1.18974475]
[1771655510260,1.18355456,626.61,625.84,1.18974475]
[1771655512359,1.18355456,626.62,625.84,1.18974475]
[1771655521268,1.18355456,626.63,625.84,1.18974475]
[1771655521669,1.18355456,626.62,625.83,1.18974475]
[1771655522469,1.18355456,626.58,625.8,1.18974475]
[1771655522670,1.18355456,626.5,625.71,1.18974475]
[1771655525476,1.18355456,626.45,625.67,1.18974475]
[1771655528277,1.18355456,626.45,625.68,1.18974475]
[1771655529277,1.18355456,626.44,625.68,1.18974475]
[1771655530181,1.58854061,626.56,625.68,1.18974475]
[1771655530182,1.18355456,626.45,625.68,1.18974475]
[1771655530382,1.18355456,626.44,625.69,1.18974475]
[1771655531281,1.18355456,626.43,625.7,1.18974475]
[1771655532079,1.18355456,626.43,625.69,1.18974475]
[1771655532278,1.18355456,626.42,625.7,1.18974475]
[1771655534279,1.18355456,626.41,625.71,1.18974475]
[1771655535181,1.18355456,626.42,625.7,1.18974475]
[1771655535383,1.18355456,626.41,625.71,1.18974475]
[1771655536184,1.18355456,626.42,625.7,1.18974475]
[1771655541086,1.18355456,626.43,625.69,1.18974475]
[1771655546386,1.18355456,626.42,625.69,1.18974475]
[1771655552298,1.18355456,626.42,625.7,1.18974475]
[1771655553298,1.18355456,626.41,625.7,1.18974475]
[1771655556396,1.18355456,626.41,625.71,1.18974475]
[1771655557297,1.18355456,626.4,625.71,1.18974475]
[1771655559400,1.18355456,626.39,625.72,1.18974475]
[1771655560701,1.18355456,626.35,625.68,1.18974475]
[1771655561301,1.18355456,626.33,625.67,1.18974475]
[1771655562302,1.18355456,626.23,625.58,1.50199302]
[1771655562501,1.18355456,626.23,625.58,1.224]
[1771655562906,1.18355456,626.22,625.58,1.224]
[1771655564106,1.18355456,626.23,625.58,1.224]
[1771655564306,1.18355456,626.22,625.58,1.224]
[1771655565108,1.18355456,626.23,625.58,1.224]
[1771655566209,1.18355456,626.22,625.58,1.224]